[Event "WYCC 2018 O14"]
[Site "Halkidiki"]
[Date "2018.10.21"]
[Round "3"]
[White "Kushagra Mohan"]
[Black "Kacharava, Nikolozi"]
[Result "1/2-1/2"]
[ECO "C42"]
[WhiteElo "2283"]
[BlackElo "2373"]
[Annotator "NA"]
[PlyCount "51"]
[EventDate "2018.10.20"]
[EventType "swiss"]
[EventCountry "GRE"]
[SourceTitle "playchess.com"]
[Source "ChessBase"]
[SourceQuality "1"]
[TimeControl "40/5400+30:1800+30"]

1. e4 {[%emt 0:00:00]} e5 {[%emt 0:00:00]} 2. Nf3 {[%emt 0:00:00]} Nf6 {[%emt 0:00:10]} 3. Nxe5 {[%emt 0:00:00]} d6 {[%emt 0:00:19]} 4. Nf3 {[%emt 0:00:00]} Nxe4 {[%emt 0:00:15]} 5. Nc3 {[%emt 0:00:00]} Nxc3 {[%emt 0:00:36]} 6. dxc3 {[%emt 0:00:01]} Be7 {[%emt 0:00:36]} 7. Be3 {[%emt 0:00:27]} O-O {[%emt 0:00:35]} 8. Qd2 {[%emt 0:00:03]} Nd7 {[%emt 0:00:40]} 9. O-O-O {[%emt 0:00:10]} c6 {[%emt 0:00:37]} 10. Kb1 {[%emt 0:00:07]} d5 {[%emt 0:00:36]} 11. c4 {[%emt 0:00:42]} Nb6 {[%emt 0:01:34]} 12. cxd5 {[%emt 0:00:03]} Nxd5 {[%emt 0:00:31]} 13. Bc4 {[%emt 0:00:08]} Be6 {[%emt 0:01:13]} 14. Rhe1 {[%emt 0:00:07]} Bb4 {[%emt 0:01:30]} 15. c3 {[%emt 0:00:07]} Be7 {[%emt 0:01:04]} 16. Bd4 {[%emt 0:09:10]} Bf6 {[%emt 0:10:14]} 17. Bxf6 {[%emt 0:14:21]} Qxf6 {[%emt 0:01:08]} 18. Nd4 {[%emt 0:03:15]} Nf4 {[%emt 0:19:17]} 19. Nxe6 {[%emt 0:05:18]} Nxe6 {[%emt 0:00:38]} 20. Bxe6 {[%emt 0:05:01]} fxe6 {[%emt 0:01:46]} 21. f3 {[%emt 0:00:25]} Rad8 {[%emt 0:01:50]} 22. Qe2 {[%emt 0:03:05]} Kf7 {[%emt 0:05:20]} 23. g3 {[%emt 0:05:52]} Rxd1+ {[%emt 0:02:21]} 24. Rxd1 {[%emt 0:00:22]} Rd8 {[%emt 0:00:46]} 25. f4 {[%emt 0:00:42]} Qf5+ {[%emt 0:01:51]} 26. Kc1 {[%emt 0:00:45]} 1/2-1/2

[Event "WYCC 2018 O14"]
[Site "Halkidiki"]
[Date "2018.10.21"]
[Round "3"]
[White "Avila Pavas, Santiago"]
[Black "Murzin, Volodar"]
[Result "1/2-1/2"]
[ECO "B17"]
[WhiteElo "2277"]
[BlackElo "2340"]
[Annotator "ChessBase"]
[PlyCount "208"]
[EventDate "2018.10.20"]
[EventType "swiss"]
[EventCountry "GRE"]
[SourceTitle "playchess.com"]
[Source "ChessBase"]
[SourceQuality "1"]
[TimeControl "40/5400+30:1800+30"]

1. e4 {[%emt 0:00:00]} c6 {[%emt 0:00:10]} 2. d4 {[%emt 0:01:13]} d5 {[%emt 0:00:05]} 3. Nc3 {[%emt 0:02:32]} dxe4 {[%emt 0:00:32]} 4. Nxe4 {[%emt 0:00:06]} Nd7 {[%emt 0:00:21]} 5. Ng5 {[%emt 0:05:40]} Ngf6 {[%emt 0:01:58]} 6. Bd3 {[%emt 0:00:38]} e6 {[%emt 0:01:45]} 7. Ne2 {[%emt 0:09:53]} Bd6 {[%emt 0:01:56]} 8. c3 {[%emt 0:03:52]} h6 {[%emt 0:00:31]} 9. Nf3 {[%emt 0:00:07]} O-O {[%emt 0:00:46]} 10. Bf4 {[%emt 0:25:59]} Bxf4 {[%emt 0:02:52]} 11. Nxf4 {[%emt 0:00:06]} c5 {[%emt 0:00:06]} 12. O-O {[%emt 0:11:12]} cxd4 {[%emt 0:00:27]} 13. cxd4 {[%emt 0:00:06]} b6 {[%emt 0:01:30]} 14. Ne5 {[%emt 0:04:10]} Bb7 {[%emt 0:00:29]} 15. Rc1 {[%emt 0:02:36]} Nxe5 {[%emt 0:08:44]} 16. dxe5 {[%emt 0:00:08]} Nd7 {[%emt 0:00:02]} 17. Qe2 {[%emt 0:11:03]} Qg5 {[%emt 0:05:57]} 18. Rc7 {[%emt 0:03:34]} Nxe5 {[%emt 0:05:20]} 19. Rxb7 {[%emt 0:00:04]} Qxf4 {[%emt 0:00:06]} 20. g3 {[%emt 0:01:41]} Qf3 {[%emt 0:01:44]} 21. Qxf3 {[%emt 0:01:04]} Nxf3+ {[%emt 0:00:18]} 22. Kg2 {[%emt 0:00:05]} Rfd8 {[%emt 0:01:45]} 23. Ba6 {[%emt 0:03:49]} Ne5 {[%emt 0:01:24]} 24. Re1 {[%emt 0:02:15]} Ng4 {[%emt 0:03:10]} 25. Re2 {[%emt 0:02:03]} Nf6 {[%emt 0:01:00]} 26. Rc2 {[%emt 0:00:19]} Ne4 {[%emt 0:06:08]} 27. b4 {[%emt 0:03:15]} Kf8 {[%emt 0:01:35]} 28. Rcc7 {[%emt 0:01:06]} Nd6 {[%emt 0:00:21]} 29. Rxa7 {[%emt 0:00:05]} b5 {[%emt 0:00:25]} 30. Rd7 {[%emt 0:02:04]} Rxa7 {[%emt 0:01:29]} 31. Rxa7 {[%emt 0:00:05]} Rb8 {[%emt 0:03:09]} 32. f4 {[%emt 0:01:39]} Nf5 {[%emt 0:02:49]} 33. Rb7 {[%emt 0:03:25]} Rxb7 {[%emt 0:04:04]} 34. Bxb7 {[%emt 0:00:06]} Ne3+ {[%emt 0:00:01]} 35. Kf2 {[%emt 0:00:56]} Nc2 {[%emt 0:01:34]} 36. Bc6 {[%emt 0:00:09]} Nxb4 {[%emt 0:00:06]} 37. Bxb5 {[%emt 0:00:05]} Nxa2 {[%emt 0:00:03]} 38. Bd3 {[%emt 0:00:46]} Nb4 {[%emt 0:00:16]} 39. Be4 {[%emt 0:00:06]} Ke7 {[%emt 0:00:04]} 40. Ke3 {[%emt 0:00:00]} Kd6 {[%emt 0:00:00]} 41. Kd4 {[%emt 0:02:33]} Nd5 {[%emt 0:01:15]} 42. Bf3 {[%emt 0:00:22]} f6 {[%emt 0:04:22]} 43. h4 {[%emt 0:06:35]} Ne7 {[%emt 0:00:31]} 44. Be4 {[%emt 0:00:11]} Nd5 {[%emt 0:05:57]} 45. Bd3 {[%emt 0:03:14]} Nb4 {[%emt 0:03:01]} 46. Be4 {[%emt 0:00:31]} Na6 {[%emt 0:00:18]} 47. Bc2 {[%emt 0:01:30]} Nc5 {[%emt 0:00:38]} 48. Bb1 {[%emt 0:00:01]} Nb3+ {[%emt 0:00:40]} 49. Kc3 {[%emt 0:00:41]} Na5 {[%emt 0:00:06]} 50. Kd4 {[%emt 0:01:38]} Nc6+ {[%emt 0:00:13]} 51. Ke4 {[%emt 0:00:35]} Ne7 {[%emt 0:01:51]} 52. Kd4 {[%emt 0:00:12]} Nd5 {[%emt 0:03:57]} 53. Bd3 {[%emt 0:00:51]} Nc7 {[%emt 0:00:15]} 54. Bc4 {[%emt 0:00:12]} Kc6 {[%emt 0:00:20]} 55. Bb3 {[%emt 0:00:51]} Nb5+ {[%emt 0:00:54]} 56. Ke3 {[%emt 0:00:06]} Kd6 {[%emt 0:00:15]} 57. Bc4 {[%emt 0:00:24]} Nc3 {[%emt 0:00:50]} 58. Kd4 {[%emt 0:00:32]} Na4 {[%emt 0:00:07]} 59. Bd3 {[%emt 0:01:16]} Nc5 {[%emt 0:00:32]} 60. Bb1 {[%emt 0:00:08]} Nb7 {[%emt 0:00:50]} 61. Be4 {[%emt 0:00:42]} Nd8 {[%emt 0:00:19]} 62. Bc2 {[%emt 0:00:21]} Nc6+ {[%emt 0:01:12]} 63. Ke4 {[%emt 0:00:16]} Ne7 {[%emt 0:00:16]} 64. Kd4 {[%emt 0:00:06]} g6 {[%emt 0:04:29]} 65. Ke3 {[%emt 0:01:43]} Nf5+ {[%emt 0:02:36]} 66. Kf2 {[%emt 0:00:04]} Kc5 {[%emt 0:00:26]} 67. Bb3 {[%emt 0:01:00]} Ng7 {[%emt 0:00:24]} 68. Bc2 {[%emt 0:01:06]} f5 {[%emt 0:00:23]} 69. Ke3 {[%emt 0:01:56]} Nh5 {[%emt 0:00:10]} 70. Bb3 {[%emt 0:00:07]} Kd6 {[%emt 0:00:05]} 71. Kf3 {[%emt 0:00:23]} Nf6 {[%emt 0:00:12]} 72. Ba4 {[%emt 0:00:36]} e5 {[%emt 0:02:03]} 73. fxe5+ {[%emt 0:01:19]} Kxe5 {[%emt 0:00:10]} 74. Bc6 {[%emt 0:00:15]} Ne4 {[%emt 0:01:28]} 75. Be8 {[%emt 0:00:28]} g5 {[%emt 0:00:06]} 76. hxg5 {[%emt 0:00:24]} hxg5 {[%emt 0:00:13]} 77. Bd7 {[%emt 0:00:29]} Nd2+ {[%emt 0:00:14]} 78. Ke2 {[%emt 0:00:20]} Nb3 {[%emt 0:00:07]} 79. Kf3 {[%emt 0:00:19]} g4+ {[%emt 0:00:41]} 80. Kg2 {[%emt 0:01:04]} Nc1 {[%emt 0:00:20]} 81. Bc8 {[%emt 0:00:21]} Ne2 {[%emt 0:00:22]} 82. Kf2 {[%emt 0:00:37]} Nc3 {[%emt 0:00:10]} 83. Bd7 {[%emt 0:00:20]} Nd1+ {[%emt 0:00:12]} 84. Ke2 {[%emt 0:00:18]} Nc3+ {[%emt 0:00:05]} 85. Kf2 {[%emt 0:00:05]} Na2 {[%emt 0:00:14]} 86. Bc8 {[%emt 0:00:14]} Nb4 {[%emt 0:00:06]} 87. Bd7 {[%emt 0:00:24]} Nd3+ {[%emt 0:00:05]} 88. Kg2 {[%emt 0:00:28]} Ne1+ {[%emt 0:00:05]} 89. Kf2 {[%emt 0:00:06]} Nf3 {[%emt 0:00:06]} 90. Bc8 {[%emt 0:00:11]} Ng5 {[%emt 0:00:07]} 91. Bd7 {[%emt 0:00:24]} Nh7 {[%emt 0:00:05]} 92. Bc8 {[%emt 0:00:08]} Nf6 {[%emt 0:00:04]} 93. Kg2 {[%emt 0:00:19]} Ke4 {[%emt 0:00:16]} 94. Kf2 {[%emt 0:00:51]} f4 {[%emt 0:00:07]} 95. gxf4 {[%emt 0:00:09]} Nd7 {[%emt 0:00:06]} 96. Kg3 {[%emt 0:00:17]} Nf6 {[%emt 0:00:11]} 97. Bxg4 {[%emt 0:00:06]} Kd5 {[%emt 0:00:03]} 98. Kh4 {[%emt 0:00:54]} Kd6 {[%emt 0:00:03]} 99. Bh3 {[%emt 0:00:50]} Nd5 {[%emt 0:00:11]} 100. f5 {[%emt 0:00:04]} Ne7 {[%emt 0:00:22]} 101. f6 {[%emt 0:00:05]} Nd5 {[%emt 0:00:03]} 102. f7 {[%emt 0:00:06]} Ke7 {[%emt 0:00:01]} 103. Be6 {[%emt 0:00:10]} Nf4 {[%emt 0:00:06]} 104. Bc4 {[%emt 0:00:06]} Ng6+ {[%emt 0:00:03]} 1/2-1/2

[Event "WYCC 2018 O14"]
[Site "Halkidiki"]
[Date "2018.10.21"]
[Round "3"]
[White "Czopor, Maciej"]
[Black "Runets, Ivan"]
[Result "1/2-1/2"]
[ECO "B84"]
[WhiteElo "2219"]
[BlackElo "2047"]
[Annotator "NA"]
[PlyCount "60"]
[EventDate "2018.10.20"]
[EventType "swiss"]
[EventCountry "GRE"]
[SourceTitle "playchess.com"]
[Source "ChessBase"]
[SourceQuality "1"]
[TimeControl "40/5400+30:1800+30"]

1. e4 {[%emt 0:00:00]} c5 {[%emt 0:00:46]} 2. Nf3 {[%emt 0:00:00]} e6 {[%emt 0:00:10]} 3. d4 {[%emt 0:00:00]} cxd4 {[%emt 0:00:06]} 4. Nxd4 {[%emt 0:00:00]} Nf6 {[%emt 0:00:07]} 5. Nc3 {[%emt 0:00:00]} d6 {[%emt 0:00:18]} 6. Be2 {[%emt 0:01:48]} a6 {[%emt 0:00:52]} 7. O-O {[%emt 0:03:53]} Be7 {[%emt 0:00:54]} 8. Be3 {[%emt 0:02:29]} O-O {[%emt 0:02:58]} 9. f4 {[%emt 0:00:45]} Qc7 {[%emt 0:13:10]} 10. Kh1 {[%emt 0:13:36]} Nc6 {[%emt 0:18:41]} 11. Qe1 {[%emt 0:01:23]} Bd7 {[%emt 0:12:31]} 12. Qg3 {[%emt 0:05:14]} Na5 {[%emt 0:10:23]} 13. e5 {[%emt 0:07:34]} Ne8 {[%emt 0:03:24]} 14. Nf5 {[%emt 0:24:34]} Nc6 {[%emt 0:15:27]} 15. Nxe7+ {[%emt 0:06:54]} Nxe7 {[%emt 0:00:06]} 16. Bd3 {[%emt 0:04:25]} f5 {[%emt 0:06:42]} 17. exd6 {[%emt 0:00:49]} Nxd6 {[%emt 0:01:23]} 18. Rad1 {[%emt 0:01:55]} Bc6 {[%emt 0:04:40]} 19. Bd4 {[%emt 0:04:07]} Nd5 {[%emt 0:01:43]} 20. Rfe1 {[%emt 0:09:15]} Nxc3 {[%emt 0:01:19]} 21. Bxc3 {[%emt 0:01:29]} Ne4 {[%emt 0:00:57]} 22. Bxe4 {[%emt 0:00:17]} Bxe4 {[%emt 0:00:29]} 23. Be5 {[%emt 0:00:46]} Qf7 {[%emt 0:00:36]} 24. Rd6 {[%emt 0:01:25]} Bd5 {[%emt 0:00:34]} 25. Rd1 {[%emt 0:05:58]} Rfc8 {[%emt 0:00:26]} 26. Rd2 {[%emt 0:00:46]} b5 {[%emt 0:00:08]} 27. h3 a5 28. Qg5 {[%emt 0:02:26]} h6 {[%emt 0:03:20]} 29. Qg3 {[%emt 0:00:18]} Kh7 {[%emt 0:00:45]} 30. Kh2 {[%emt 0:01:23]} Ra7 {[%emt 0:00:32]} 1/2-1/2

[Event "WYCC 2018 O14"]
[Site "Halkidiki"]
[Date "2018.10.21"]
[Round "3"]
[White "Tengis, Tsog-Ochir"]
[Black "Tanriverdi, Enes"]
[Result "1-0"]
[ECO "A45"]
[WhiteElo "2205"]
[BlackElo "2317"]
[Annotator "NA"]
[PlyCount "69"]
[EventDate "2018.10.20"]
[EventType "swiss"]
[EventCountry "GRE"]
[SourceTitle "playchess.com"]
[Source "ChessBase"]
[SourceQuality "1"]
[TimeControl "40/5400+30:1800+30"]

1. d4 {[%emt 0:00:00]} Nf6 {[%emt 0:00:00]} 2. g3 {[%emt 0:01:49]} c5 {[%emt 0:01:33]} 3. c3 {[%emt 0:07:17]} e6 {[%emt 0:10:36]} 4. Bg2 {[%emt 0:00:28]} d5 {[%emt 0:00:11]} 5. Nf3 {[%emt 0:00:05]} Nc6 {[%emt 0:00:09]} 6. Ne5 {[%emt 0:00:28]} Be7 {[%emt 0:02:22]} 7. O-O {[%emt 0:00:22]} O-O {[%emt 0:00:07]} 8. f4 {[%emt 0:01:54]} Bd7 {[%emt 0:02:14]} 9. e3 {[%emt 0:02:31]} Ne4 {[%emt 0:12:56]} 10. Nd2 {[%emt 0:00:21]} Nxd2 {[%emt 0:00:19]} 11. Bxd2 {[%emt 0:00:10]} Rc8 {[%emt 0:01:19]} 12. Qh5 {[%emt 0:02:44]} b5 {[%emt 0:11:29]} 13. Nxd7 {[%emt 0:01:00]} Qxd7 {[%emt 0:00:14]} 14. f5 {[%emt 0:00:19]} Bf6 $16 {[%emt 0:04:47]} 15. g4 {[%emt 0:03:05]} Qe7 {[%emt 0:00:17]} 16. e4 {[%emt 0:03:51]} g6 {[%emt 0:02:00]} 17. Qh6 {[%emt 0:01:19]} Bg7 {[%emt 0:11:48]} 18. Qf4 {[%emt 0:00:13]} e5 {[%emt 0:00:18]} 19. Qf2 {[%emt 0:00:37]} f6 {[%emt 0:04:36]} 20. exd5 {[%emt 0:00:20]} Na5 {[%emt 0:00:13]} 21. dxc5 {[%emt 0:00:45]} Nc4 {[%emt 0:00:28]} 22. d6 {[%emt 0:00:45]} Qd8 {[%emt 0:00:09]} 23. b4 {[%emt 0:00:50]} a5 {[%emt 0:00:34]} 24. fxg6 {[%emt 0:00:42]} Nxd2 {[%emt 0:00:32]} 25. Qxd2 {[%emt 0:00:24]} hxg6 {[%emt 0:00:07]} 26. Bd5+ {[%emt 0:00:07]} Kh7 {[%emt 0:00:29]} 27. Rf3 {[%emt 0:00:26]} Bh6 {[%emt 0:00:18]} 28. Rh3 {[%emt 0:00:24]} g5 {[%emt 0:00:05]} 29. Be4+ {[%emt 0:01:39]} Kg7 {[%emt 0:00:05]} 30. Qd3 {[%emt 0:00:19]} axb4 {[%emt 0:00:42]} 31. Rxh6 {[%emt 0:00:45]} f5 {[%emt 0:00:25]} 32. Bxf5 {[%emt 0:00:36]} Rxf5 {[%emt 0:00:32]} 33. Qxf5 {[%emt 0:00:12]} Kxh6 {[%emt 0:00:02]} 34. Qe6+ {[%emt 0:00:16]} Kg7 {[%emt 0:00:05]} 35. Rf1 {[%emt 0:00:02]} 1-0

[Event "WYCC 2018 O14"]
[Site "Halkidiki"]
[Date "2018.10.21"]
[Round "3"]
[White "Fecker, Noah"]
[Black "Sanger, Jake M"]
[Result "1-0"]
[ECO "A14"]
[WhiteElo "2184"]
[BlackElo "1880"]
[Annotator "NA"]
[PlyCount "107"]
[EventDate "2018.10.20"]
[EventType "swiss"]
[EventCountry "GRE"]
[SourceTitle "playchess.com"]
[Source "ChessBase"]
[SourceQuality "1"]
[TimeControl "40/5400+30:1800+30"]

1. Nf3 {[%emt 0:00:00]} Nf6 {[%emt 0:00:00]} 2. c4 {[%emt 0:00:00]} e6 {[%emt 0:00:00]} 3. g3 {[%emt 0:00:03]} d5 {[%emt 0:00:11]} 4. Bg2 {[%emt 0:00:17]} Be7 {[%emt 0:00:31]} 5. O-O {[%emt 0:00:35]} c5 {[%emt 0:00:12]} 6. b3 {[%emt 0:02:43]} Nc6 {[%emt 0:00:23]} 7. Bb2 {[%emt 0:00:40]} O-O {[%emt 0:05:58]} 8. d3 {[%emt 0:03:43]} a6 {[%emt 0:06:52]} 9. Nbd2 {[%emt 0:04:20]} b5 {[%emt 0:07:45]} 10. Rc1 {[%emt 0:05:30]} bxc4 {[%emt 0:03:58]} 11. dxc4 {[%emt 0:01:47]} Qb6 {[%emt 0:03:21]} 12. cxd5 {[%emt 0:04:36]} exd5 {[%emt 0:01:30]} 13. e4 $11 {[%emt 0:11:52]} dxe4 {[%emt 0:13:48]} 14. Ng5 {[%emt 0:06:12]} e3 {[%emt 0:05:50]} 15. Nc4 {[%emt 0:03:32]} exf2+ {[%emt 0:01:20]} 16. Rxf2 {[%emt 0:00:20]} Qc7 {[%emt 0:00:36]} 17. Qc2 {[%emt 0:03:38]} g6 {[%emt 0:15:13]} 18. Bxf6 {[%emt 0:02:23]} Bxf6 {[%emt 0:00:16]} 19. Rxf6 {[%emt 0:00:18]} Nd4 {[%emt 0:00:41]} 20. Qf2 {[%emt 0:01:15]} Bb7 {[%emt 0:02:34]} 21. Rf1 {[%emt 0:01:20]} Bxg2 {[%emt 0:00:30]} 22. Qxg2 {[%emt 0:00:44]} Rae8 {[%emt 0:00:07]} 23. Qd5 {[%emt 0:07:32]} Nf5 {[%emt 0:03:17]} 24. R6xf5 {[%emt 0:04:19]} gxf5 {[%emt 0:00:17]} 25. Qxf5 {[%emt 0:00:07]} f6 {[%emt 0:00:06]} 26. Ne6 {[%emt 0:00:11]} Qe7 {[%emt 0:00:44]} 27. Nxf8 {[%emt 0:00:40]} Rxf8 {[%emt 0:00:05]} 28. Qd5+ {[%emt 0:01:34]} Kg7 {[%emt 0:00:11]} 29. Qd6 {[%emt 0:01:14]} Qa7 {[%emt 0:01:14]} 30. Re1 {[%emt 0:00:55]} Rf7 {[%emt 0:00:19]} 31. Qf4 {[%emt 0:01:07]} Qd7 {[%emt 0:00:19]} 32. Nd6 {[%emt 0:00:26]} Rf8 {[%emt 0:00:13]} 33. Nf5+ {[%emt 0:00:27]} Kh8 {[%emt 0:00:15]} 34. Qd6 {[%emt 0:00:23]} Qf7 {[%emt 0:00:29]} 35. Qe7 {[%emt 0:01:03]} Qg8 {[%emt 0:00:43]} 36. Nh6 {[%emt 0:01:39]} Qg7 {[%emt 0:00:11]} 37. Qxg7+ {[%emt 0:00:05]} Kxg7 {[%emt 0:00:05]} 38. Nf5+ {[%emt 0:00:28]} Kg6 {[%emt 0:00:07]} 39. Nd6 {[%emt 0:00:27]} Rd8 {[%emt 0:00:15]} 40. Nc4 {[%emt 0:00:00]} a5 {[%emt 0:00:00]} 41. Nxa5 {[%emt 0:00:34]} Ra8 {[%emt 0:00:53]} 42. Nb7 {[%emt 0:00:09]} Rxa2 {[%emt 0:00:11]} 43. Nxc5 {[%emt 0:00:04]} Rb2 {[%emt 0:00:09]} 44. Rf1 {[%emt 0:00:38]} Rc2 {[%emt 0:00:18]} 45. Nd7 {[%emt 0:00:23]} f5 {[%emt 0:01:17]} 46. Rb1 {[%emt 0:00:28]} Rc7 {[%emt 0:00:30]} 47. Ne5+ {[%emt 0:00:18]} Kf6 {[%emt 0:00:07]} 48. Nd3 {[%emt 0:00:04]} Ke6 {[%emt 0:00:13]} 49. b4 {[%emt 0:00:04]} Kd5 {[%emt 0:00:11]} 50. b5 {[%emt 0:00:05]} Rb7 {[%emt 0:00:24]} 51. b6 {[%emt 0:00:06]} Kc6 {[%emt 0:00:21]} 52. Kf2 {[%emt 0:00:03]} Rxb6 {[%emt 0:00:09]} 53. Rxb6+ {[%emt 0:00:02]} Kxb6 {[%emt 0:00:15]} 54. Kf3 {[%emt 0:00:03]} 1-0

[Event "WYCC 2018 O14"]
[Site "Halkidiki"]
[Date "2018.10.21"]
[Round "3"]
[White "Juhasz, Agoston"]
[Black "Horobrijs, Daniils"]
[Result "1-0"]
[ECO "B52"]
[WhiteElo "2174"]
[BlackElo "1918"]
[Annotator "NA"]
[PlyCount "127"]
[EventDate "2018.10.20"]
[EventType "swiss"]
[EventCountry "GRE"]
[SourceTitle "playchess.com"]
[Source "ChessBase"]
[SourceQuality "1"]
[TimeControl "40/5400+30:1800+30"]

1. e4 {[%emt 0:00:00]} c5 {[%emt 0:00:00]} 2. Nf3 {[%emt 0:00:00]} d6 {[%emt 0:00:00]} 3. Bb5+ {[%emt 0:00:00]} Bd7 {[%emt 0:00:00]} 4. Bxd7+ {[%emt 0:00:10]} Qxd7 {[%emt 0:00:01]} 5. c4 {[%emt 0:00:21]} Nf6 {[%emt 0:00:16]} 6. Nc3 {[%emt 0:00:07]} g6 {[%emt 0:00:04]} 7. d4 {[%emt 0:00:15]} cxd4 {[%emt 0:00:04]} 8. Nxd4 {[%emt 0:00:04]} Bg7 {[%emt 0:00:05]} 9. b3 {[%emt 0:00:15]} O-O {[%emt 0:00:06]} 10. O-O {[%emt 0:00:25]} Rc8 {[%emt 0:00:14]} 11. Bb2 {[%emt 0:00:21]} e6 {[%emt 0:09:05]} 12. Qd2 {[%emt 0:06:10]} d5 {[%emt 0:03:21]} 13. cxd5 {[%emt 0:17:46]} exd5 {[%emt 0:02:18]} 14. e5 {[%emt 0:00:19]} Ne4 {[%emt 0:05:02]} 15. Nxe4 {[%emt 0:02:00]} dxe4 {[%emt 0:00:07]} 16. e6 {[%emt 0:04:48]} fxe6 {[%emt 0:00:32]} 17. Rad1 {[%emt 0:07:10]} Rd8 {[%emt 0:01:33]} 18. Qe2 {[%emt 0:02:50]} Qf7 {[%emt 0:07:43]} 19. Qxe4 {[%emt 0:02:33]} Na6 {[%emt 0:09:53]} 20. Rfe1 {[%emt 0:12:19]} Nc5 {[%emt 0:02:29]} 21. Qe3 {[%emt 0:01:56]} Rd5 {[%emt 0:12:45]} 22. Ba3 {[%emt 0:05:53]} b6 {[%emt 0:03:05]} 23. Bxc5 {[%emt 0:05:54]} bxc5 {[%emt 0:02:17]} 24. Nb5 {[%emt 0:02:05]} Rad8 {[%emt 0:03:55]} 25. Rxd5 {[%emt 0:01:54]} Rxd5 {[%emt 0:00:09]} 26. g3 {[%emt 0:02:08]} a6 {[%emt 0:01:33]} 27. Nc3 {[%emt 0:09:01]} Bd4 {[%emt 0:03:10]} 28. Qd2 {[%emt 0:00:32]} Rh5 {[%emt 0:13:01]} 29. Ne4 {[%emt 0:03:48]} Qf5 {[%emt 0:00:49]} 30. h4 {[%emt 0:01:28]} Qf3 {[%emt 0:01:00]} 31. Qe2 {[%emt 0:00:50]} Qxe2 {[%emt 0:01:20]} 32. Rxe2 {[%emt 0:00:03]} Rd5 {[%emt 0:00:39]} 33. Kg2 {[%emt 0:02:13]} h6 {[%emt 0:01:25]} 34. Rc2 {[%emt 0:01:59]} Kf7 {[%emt 0:00:44]} 35. Rc4 {[%emt 0:00:20]} Rd7 {[%emt 0:09:02]} 36. Ra4 {[%emt 0:02:37]} Ra7 {[%emt 0:02:42]} 37. Ra5 {[%emt 0:00:17]} Ke7 {[%emt 0:01:11]} 38. Kf3 {[%emt 0:03:23]} Kd7 {[%emt 0:00:58]} 39. Nxc5+ {[%emt 0:00:35]} Bxc5 {[%emt 0:00:02]} 40. Rxc5 {[%emt 0:00:00]} a5 {[%emt 0:00:00]} 41. Rc4 {[%emt 0:01:15]} Rb7 {[%emt 0:01:03]} 42. Rg4 {[%emt 0:00:43]} g5 {[%emt 0:06:27]} 43. hxg5 {[%emt 0:00:36]} h5 {[%emt 0:00:02]} 44. Rh4 {[%emt 0:00:29]} e5 {[%emt 0:00:02]} 45. Rxh5 {[%emt 0:00:19]} Ke6 {[%emt 0:00:06]} 46. Rh4 {[%emt 0:01:39]} Kf5 {[%emt 0:00:09]} 47. Re4 {[%emt 0:03:15]} Rb5 {[%emt 0:00:26]} 48. Ke3 {[%emt 0:00:55]} Kxg5 {[%emt 0:00:13]} 49. Kd3 {[%emt 0:01:19]} Kf5 {[%emt 0:02:14]} 50. g4+ {[%emt 0:00:31]} Kf6 {[%emt 0:00:40]} 51. f4 {[%emt 0:02:28]} exf4 {[%emt 0:01:25]} 52. Rxf4+ {[%emt 0:01:37]} Ke6 {[%emt 0:00:03]} 53. Kc3 {[%emt 0:00:32]} Rc5+ {[%emt 0:00:34]} 54. Rc4 {[%emt 0:00:26]} Rg5 {[%emt 0:00:13]} 55. Rf4 {[%emt 0:03:19]} Rg8 {[%emt 0:01:05]} 56. a4 {[%emt 0:02:44]} Rc8+ {[%emt 0:02:10]} 57. Kb2 {[%emt 0:00:32]} Ra8 {[%emt 0:01:26]} 58. Rf5 {[%emt 0:00:44]} Kd6 {[%emt 0:00:16]} 59. g5 {[%emt 0:00:40]} Kc6 {[%emt 0:00:05]} 60. g6 {[%emt 0:00:14]} Kb6 {[%emt 0:00:23]} 61. g7 {[%emt 0:00:18]} Rg8 {[%emt 0:00:06]} 62. Rg5 {[%emt 0:00:04]} Ka6 {[%emt 0:00:05]} 63. Kc3 {[%emt 0:00:04]} Rc8+ {[%emt 0:00:08]} 64. Kd4 {[%emt 0:00:10]} 1-0